[Event "*** MasterClass Titled Tuesday Blitz"]
[Site "Chess.com"]
[Date "2017.11.07"]
[Round "4"]
[White "PositionalGenius"]
[Black "MFBerna"]
[Result "1-0"]
[WhiteElo "2414"]
[BlackElo "2311"]
[TimeControl "180+2"]
[EndTime "15:00:52 PST"]
[Termination "PositionalGenius won by resignation"]

1. e4 {[%clk 0:03:01.9]} 1... e5 {[%clk 0:03:00.6]} 2. Nf3 {[%clk 0:03:02.3]}
2... Nc6 {[%clk 0:03:02]} 3. d4 {[%clk 0:02:59.5]} 3... exd4 {[%clk 0:03:02.7]}
4. Nxd4 {[%clk 0:03:01.4]} 4... Qf6 {[%clk 0:02:59.7]} 5. Nf5 {[%clk 0:02:53.4]}
5... Nge7 {[%clk 0:02:43.6]} 6. Ne3 {[%clk 0:02:48.2]} 6... d6 {[%clk
0:02:34.6]} 7. Be2 {[%clk 0:02:48.8]} 7... Be6 {[%clk 0:02:12.6]} 8. Nc3 {[%clk
0:02:49.3]} 8... Ng6 {[%clk 0:02:04.3]} 9. Ned5 {[%clk 0:02:45.3]} 9... Qd8
{[%clk 0:02:05.2]} 10. O-O {[%clk 0:02:44.2]} 10... Qd7 {[%clk 0:02:01.9]} 11.
f4 {[%clk 0:02:44.2]} 11... f5 {[%clk 0:01:56.3]} 12. exf5 {[%clk 0:02:28.9]}
12... Bxf5 {[%clk 0:01:58.2]} 13. g4 {[%clk 0:02:29.8]} 13... Be6 {[%clk
0:01:56.5]} 14. f5 {[%clk 0:02:17]} 14... Bxd5 {[%clk 0:01:57.5]} 15. Nxd5
{[%clk 0:02:18.4]} 15... Nge5 {[%clk 0:01:56.3]} 16. Bg5 {[%clk 0:02:17.9]}
16... Qf7 {[%clk 0:01:26.6]} 17. Bb5 {[%clk 0:02:00.7]} 17... a6 {[%clk
0:01:20.4]} 18. Ba4 {[%clk 0:01:59.6]} 18... Kd7 {[%clk 0:01:16.9]} 19. Bb3
{[%clk 0:01:51.5]} 19... Qe8 {[%clk 0:01:16.2]} 20. f6 {[%clk 0:01:41.1]} 20...
Qg6 {[%clk 0:01:06.6]} 21. h4 {[%clk 0:01:29.6]} 21... Qe4 {[%clk 0:00:44.5]}
22. Nf4 {[%clk 0:01:17.8]} 22... Nd4 {[%clk 0:00:18.6]} 23. Bd5 {[%clk
0:01:02.1]} 23... Qe3+ {[%clk 0:00:19.2]} 24. Rf2 {[%clk 0:01:03.3]} 24... gxf6
{[%clk 0:00:14.6]} 25. Ng2 {[%clk 0:00:54.1]} 25... Qg3 {[%clk 0:00:05.9]} 26.
Bf4 {[%clk 0:00:51.3]} 26... Qxf2+ {[%clk 0:00:04]} 27. Kxf2 {[%clk 0:00:51.6]}
27... c5 {[%clk 0:00:04.9]} 28. c3 {[%clk 0:00:49.4]} 28... Ne6 {[%clk
0:00:04.9]} 29. Bxe6+ {[%clk 0:00:48.9]} 29... Kxe6 {[%clk 0:00:06.8]} 30. Ne3
{[%clk 0:00:48.3]} 30... Be7 {[%clk 0:00:07]} 31. Qd5+ {[%clk 0:00:49]} 31...
Kd7 {[%clk 0:00:07.9]} 32. Rd1 {[%clk 0:00:44.5]} 32... b5 {[%clk 0:00:08.1]}
33. Bxe5 {[%clk 0:00:41.5]} 33... fxe5 {[%clk 0:00:08.9]} 34. Nf5 {[%clk
0:00:42.9]} 34... Rhf8 {[%clk 0:00:08]} 35. Kg3 {[%clk 0:00:41.3]} 35... Rac8
{[%clk 0:00:08.5]} 36. Nxe7 {[%clk 0:00:38.7]} 1-0

[Event "*** MasterClass Titled Tuesday Blitz"]
[Site "Chess.com"]
[Date "2017.11.07"]
[Round "4"]
[White "EndgameGrinder"]
[Black "VladDobrov"]
[Result "0-1"]
[WhiteElo "2494"]
[BlackElo "2660"]
[TimeControl "180+2"]
[EndTime "15:01:02 PST"]
[Termination "VladDobrov won by resignation"]

1. e4 {[%clk 0:03:01.9]} 1... c5 {[%clk 0:02:59.7]} 2. Nf3 {[%clk 0:03:03.3]}
2... d6 {[%clk 0:03:00.7]} 3. d4 {[%clk 0:03:04.8]} 3... cxd4 {[%clk 0:03:02.1]}
4. Nxd4 {[%clk 0:03:06.7]} 4... Nf6 {[%clk 0:03:03.2]} 5. Nc3 {[%clk 0:03:08.4]}
5... a6 {[%clk 0:03:04.2]} 6. Bg5 {[%clk 0:03:09.3]} 6... Nbd7 {[%clk
0:03:04.2]} 7. Qe2 {[%clk 0:03:10.7]} 7... h6 {[%clk 0:03:00.3]} 8. Bh4 {[%clk
0:03:11.8]} 8... Qc7 {[%clk 0:02:59.7]} 9. f4 {[%clk 0:03:10.3]} 9... g6 {[%clk
0:02:40.2]} 10. O-O-O {[%clk 0:03:09.9]} 10... Bg7 {[%clk 0:02:19.1]} 11. g4
{[%clk 0:02:52]} 11... e5 {[%clk 0:02:18.2]} 12. fxe5 {[%clk 0:02:48.9]} 12...
dxe5 {[%clk 0:02:20.1]} 13. Nb3 {[%clk 0:02:47.1]} 13... O-O {[%clk 0:02:14.7]}
14. g5 {[%clk 0:02:35.8]} 14... hxg5 {[%clk 0:02:14.3]} 15. Bxg5 {[%clk
0:02:37.7]} 15... Nb6 {[%clk 0:01:47.2]} 16. Qf2 {[%clk 0:02:16]} 16... Qc6
{[%clk 0:01:04.1]} 17. Bg2 {[%clk 0:01:18.7]} 17... Bg4 {[%clk 0:01:01.6]} 18.
Na5 {[%clk 0:01:13]} 18... Qe6 {[%clk 0:01:00.8]} 19. Rd2 {[%clk 0:00:52.5]}
19... Rac8 {[%clk 0:00:55.5]} 20. h3 {[%clk 0:00:47.8]} 20... Rxc3 {[%clk
0:00:52.6]} 21. bxc3 {[%clk 0:00:28.1]} 21... Qxa2 {[%clk 0:00:52.5]} 22. Qxb6
{[%clk 0:00:29.3]} 22... Be6 {[%clk 0:00:28.2]} 23. Nb3 {[%clk 0:00:30.5]} 23...
Kh7 {[%clk 0:00:17.9]} 24. Rhd1 {[%clk 0:00:29.4]} 24... Rc8 {[%clk 0:00:17.1]}
25. Qb4 {[%clk 0:00:22.2]} 25... Bf8 {[%clk 0:00:14.4]} 26. Qa5 {[%clk
0:00:19.4]} 26... Ba3+ {[%clk 0:00:13.7]} 27. Qxa3 {[%clk 0:00:20.7]} 27...
Qxa3+ {[%clk 0:00:15.6]} 28. Kb1 {[%clk 0:00:22.2]} 28... Bxb3 {[%clk
0:00:16.6]} 29. cxb3 {[%clk 0:00:24.1]} 29... Qxb3+ {[%clk 0:00:18]} 30. Ka1
{[%clk 0:00:18.9]} 30... Qa3+ {[%clk 0:00:19.1]} 31. Kb1 {[%clk 0:00:20]} 31...
Rxc3 {[%clk 0:00:18.8]} 32. Bxf6 {[%clk 0:00:10.6]} 32... Rb3+ {[%clk
0:00:19.3]} 33. Kc2 {[%clk 0:00:12]} 33... Rb2+ {[%clk 0:00:20.1]} 0-1

[Event "*** MasterClass Titled Tuesday Blitz"]
[Site "Chess.com"]
[Date "2017.11.07"]
[Round "4"]
[White "BilodeauA"]
[Black "Oneofmyturns"]
[Result "1-0"]
[WhiteElo "2800"]
[BlackElo "2515"]
[TimeControl "180+2"]
[EndTime "15:01:10 PST"]
[Termination "BilodeauA won by resignation"]

1. e4 {[%clk 0:02:59.9]} 1... e5 {[%clk 0:03:00.2]} 2. Nf3 {[%clk 0:03:00.2]}
2... Nc6 {[%clk 0:02:56.1]} 3. Bb5 {[%clk 0:03:01.5]} 3... a6 {[%clk 0:02:57.3]}
4. Ba4 {[%clk 0:03:02.4]} 4... Nf6 {[%clk 0:02:58.7]} 5. O-O {[%clk 0:03:03.9]}
5... b5 {[%clk 0:03:00.1]} 6. Bb3 {[%clk 0:03:04.6]} 6... Bc5 {[%clk 0:03:01.5]}
7. a4 {[%clk 0:03:02.6]} 7... Rb8 {[%clk 0:03:02.8]} 8. c3 {[%clk 0:02:59.9]}
8... d6 {[%clk 0:03:03.8]} 9. d4 {[%clk 0:03:00.2]} 9... Bb6 {[%clk 0:03:05.2]}
10. h3 {[%clk 0:02:56.6]} 10... O-O {[%clk 0:03:05.1]} 11. Re1 {[%clk
0:02:57.3]} 11... Re8 {[%clk 0:02:56.9]} 12. Ng5 {[%clk 0:02:56]} 12... Re7
{[%clk 0:02:55.9]} 13. Be3 {[%clk 0:02:44.3]} 13... h6 {[%clk 0:02:35.1]} 14.
Nf3 {[%clk 0:02:42.4]} 14... exd4 {[%clk 0:02:26.7]} 15. cxd4 {[%clk 0:02:37.8]}
15... Rxe4 {[%clk 0:02:25.5]} 16. axb5 {[%clk 0:02:36.5]} 16... axb5 {[%clk
0:02:26.2]} 17. Nc3 {[%clk 0:02:37.4]} 17... Re8 {[%clk 0:02:16.3]} 18. Nxb5
{[%clk 0:02:38.6]} 18... Bf5 {[%clk 0:02:11.1]} 19. Nc3 {[%clk 0:02:30.8]} 19...
Nb4 {[%clk 0:02:12.3]} 20. Na4 {[%clk 0:02:07.6]} 20... Ba5 {[%clk 0:01:26.3]}
21. Nc3 {[%clk 0:02:07.3]} 21... Bb6 {[%clk 0:01:24.8]} 22. Ra4 {[%clk
0:02:08.2]} 22... c5 {[%clk 0:01:02.1]} 23. d5 {[%clk 0:01:30.5]} 23... Nd3
{[%clk 0:00:52.3]} 24. Re2 {[%clk 0:01:30]} 24... c4 {[%clk 0:00:53.8]} 25. Rxc4
{[%clk 0:01:25.1]} 25... Bxe3 {[%clk 0:00:49.7]} 26. fxe3 {[%clk 0:01:25]} 26...
Qb6 {[%clk 0:00:48.8]} 27. Nd4 {[%clk 0:01:26.5]} 27... Bg6 {[%clk 0:00:25.1]}
28. Na4 {[%clk 0:01:28]} 28... Qa6 {[%clk 0:00:18.4]} 29. Rc6 {[%clk 0:01:18.7]}
29... Qa5 {[%clk 0:00:19.3]} 30. Rxd6 {[%clk 0:01:17.4]} 30... Qb4 {[%clk
0:00:11.9]} 31. Rc6 {[%clk 0:01:01.9]} 31... Rxe3 {[%clk 0:00:13.2]} 32. Rc4
{[%clk 0:00:36.2]} 32... Rxe2 {[%clk 0:00:04.7]} 33. Rxb4 {[%clk 0:00:36.8]}
33... Rxg2+ {[%clk 0:00:03.9]} 34. Kxg2 {[%clk 0:00:35.7]} 34... Rxb4 {[%clk
0:00:05.8]} 35. Nc6 {[%clk 0:00:27.6]} 35... Rf4 {[%clk 0:00:07]} 36. Ne7+
{[%clk 0:00:27.6]} 36... Kh7 {[%clk 0:00:08.6]} 37. Nxg6 {[%clk 0:00:28.8]} 1-0

[Event "*** MasterClass Titled Tuesday Blitz"]
[Site "Chess.com"]
[Date "2017.11.07"]
[Round "4"]
[White "aa175"]
[Black "northridgehawk"]
[Result "1-0"]
[WhiteElo "1858"]
[BlackElo "1943"]
[TimeControl "180+2"]
[EndTime "15:01:11 PST"]
[Termination "aa175 won by checkmate"]

1. e4 {[%clk 0:03:01.9]} 1... e5 {[%clk 0:03:00.6]} 2. Nf3 {[%clk 0:03:02.7]}
2... Nc6 {[%clk 0:02:56.5]} 3. Bc4 {[%clk 0:03:01.6]} 3... Nf6 {[%clk
0:02:56.6]} 4. d3 {[%clk 0:02:53.9]} 4... Bc5 {[%clk 0:02:56.7]} 5. h3 {[%clk
0:02:46]} 5... d6 {[%clk 0:02:57.2]} 6. O-O {[%clk 0:02:44]} 6... a6 {[%clk
0:02:58]} 7. a4 {[%clk 0:02:43]} 7... h6 {[%clk 0:02:59.1]} 8. c3 {[%clk
0:02:43.9]} 8... Ba7 {[%clk 0:02:58.5]} 9. Na3 {[%clk 0:02:41.7]} 9... g5 {[%clk
0:02:59.1]} 10. Nc2 {[%clk 0:02:29.3]} 10... g4 {[%clk 0:02:59.3]} 11. Nh4
{[%clk 0:02:29.3]} 11... Nxe4 {[%clk 0:02:56.2]} 12. dxe4 {[%clk 0:02:27.3]}
12... Qxh4 {[%clk 0:02:56.5]} 13. Be3 {[%clk 0:02:00.6]} 13... gxh3 {[%clk
0:02:49]} 14. g3 {[%clk 0:02:01.8]} 14... h2+ {[%clk 0:02:40.4]} 15. Kh1 {[%clk
0:02:01.8]} 15... Qh3 {[%clk 0:02:38.7]} 16. Bxa7 {[%clk 0:01:59.7]} 16... Rxa7
{[%clk 0:02:38.6]} 17. Ne3 {[%clk 0:01:54]} 17... Rg8 {[%clk 0:02:37.9]} 18. Nd5
{[%clk 0:01:51.5]} 18... Rg6 {[%clk 0:02:22.2]} 19. Nxc7+ {[%clk 0:01:43]} 19...
Kd8 {[%clk 0:02:22.7]} 20. Bxf7 {[%clk 0:01:40.5]} 20... Rf6 {[%clk 0:02:14.4]}
21. Ne6+ {[%clk 0:01:27.6]} 21... Ke7 {[%clk 0:02:04.1]} 22. Nc7 {[%clk
0:00:23.5]} 22... Bg4 {[%clk 0:01:47.9]} 23. Nd5+ {[%clk 0:00:20]} 23... Kxf7
{[%clk 0:01:48]} 24. f3 {[%clk 0:00:17.3]} 24... Bh5 {[%clk 0:01:14]} 25. Nxf6
{[%clk 0:00:16.1]} 25... Kxf6 {[%clk 0:01:14.4]} 26. Qxd6+ {[%clk 0:00:17]}
26... Qe6 {[%clk 0:01:15.8]} 27. Qf8+ {[%clk 0:00:16.6]} 27... Kg6 {[%clk
0:01:14]} 28. g4 {[%clk 0:00:13.1]} 28... Bxg4 {[%clk 0:00:59.7]} 29. fxg4
{[%clk 0:00:13]} 29... Ne7 {[%clk 0:01:00.9]} 30. Qf5+ {[%clk 0:00:10]} 30...
Qxf5 {[%clk 0:00:59.4]} 31. gxf5+ {[%clk 0:00:11.9]} 31... Kf6 {[%clk
0:01:00.8]} 32. Kxh2 {[%clk 0:00:13.1]} 32... Ra8 {[%clk 0:01:00.8]} 33. Rad1
{[%clk 0:00:13.5]} 33... b5 {[%clk 0:01:00.4]} 34. Rd6+ {[%clk 0:00:14.2]} 34...
Kf7 {[%clk 0:01:01.3]} 35. Rxh6 {[%clk 0:00:14.5]} 35... bxa4 {[%clk 0:01:00.1]}
36. f6 {[%clk 0:00:14]} 36... Ng6 {[%clk 0:00:56.5]} 37. Rh7+ {[%clk 0:00:14.8]}
37... Ke6 {[%clk 0:00:57.8]} 38. f7 {[%clk 0:00:15.2]} 38... Rf8 {[%clk
0:00:58.2]} 39. Rh6 {[%clk 0:00:15]} 39... Ke7 {[%clk 0:00:51.4]} 40. Rxg6
{[%clk 0:00:16.1]} 40... Rh8+ {[%clk 0:00:52.2]} 41. Kg2 {[%clk 0:00:17.1]}
41... Rb8 {[%clk 0:00:53.1]} 42. f8=Q+ {[%clk 0:00:16.1]} 42... Rxf8 {[%clk
0:00:53.3]} 43. Rg7+ {[%clk 0:00:17.1]} 43... Kd6 {[%clk 0:00:54.1]} 44. Rxf8
{[%clk 0:00:18.1]} 44... Kc5 {[%clk 0:00:56]} 45. Rc7+ {[%clk 0:00:18.7]} 45...
Kb5 {[%clk 0:00:57]} 46. Rb8+ {[%clk 0:00:19.7]} 46... Ka5 {[%clk 0:00:58.4]}
47. Rc5# {[%clk 0:00:20.8]} 1-0

[Event "*** MasterClass Titled Tuesday Blitz"]
[Site "Chess.com"]
[Date "2017.11.07"]
[Round "4"]
[White "yurisolo"]
[Black "Robin-Side"]
[Result "1-0"]
[WhiteElo "2592"]
[BlackElo "2599"]
[TimeControl "180+2"]
[EndTime "15:01:30 PST"]
[Termination "yurisolo won on time"]

1. e4 {[%clk 0:03:01.9]} 1... g6 {[%clk 0:02:58.9]} 2. d4 {[%clk 0:03:02.6]}
2... Bg7 {[%clk 0:03:00.4]} 3. Nc3 {[%clk 0:03:04.5]} 3... e6 {[%clk 0:03:01.8]}
4. h4 {[%clk 0:03:03.5]} 4... h6 {[%clk 0:03:02.2]} 5. Be3 {[%clk 0:03:03.6]}
5... d5 {[%clk 0:03:01.6]} 6. e5 {[%clk 0:03:04]} 6... Ne7 {[%clk 0:03:01.8]} 7.
Nce2 {[%clk 0:02:57]} 7... Nf5 {[%clk 0:03:00.2]} 8. Qd2 {[%clk 0:02:58.3]} 8...
c5 {[%clk 0:02:54.7]} 9. c3 {[%clk 0:02:58.8]} 9... Nc6 {[%clk 0:02:52.4]} 10.
Nf3 {[%clk 0:03:00.1]} 10... cxd4 {[%clk 0:02:51.5]} 11. cxd4 {[%clk 0:03:00.8]}
11... Nxe3 {[%clk 0:02:52.7]} 12. fxe3 {[%clk 0:03:01]} 12... Qe7 {[%clk
0:02:36.5]} 13. Nc3 {[%clk 0:03:01.4]} 13... a6 {[%clk 0:02:36.8]} 14. Na4
{[%clk 0:02:58.8]} 14... O-O {[%clk 0:02:30.2]} 15. Rc1 {[%clk 0:02:49.2]} 15...
Bd7 {[%clk 0:02:26.1]} 16. Nc5 {[%clk 0:02:49.2]} 16... b6 {[%clk 0:02:24.2]}
17. Nxd7 {[%clk 0:02:45.6]} 17... Qxd7 {[%clk 0:02:26.1]} 18. Bd3 {[%clk
0:02:45.6]} 18... Rfc8 {[%clk 0:02:18.9]} 19. h5 {[%clk 0:02:46.6]} 19... g5
{[%clk 0:02:13.9]} 20. Nh2 {[%clk 0:02:44.8]} 20... Ne7 {[%clk 0:01:39]} 21. O-O
{[%clk 0:02:35.3]} 21... Rxc1 {[%clk 0:00:47.9]} 22. Rxc1 {[%clk 0:02:34.8]}
22... a5 {[%clk 0:00:47.8]} 23. Ng4 {[%clk 0:02:31.3]} 23... Rc8 {[%clk
0:00:43]} 24. Rf1 {[%clk 0:02:31.9]} 24... Nf5 {[%clk 0:00:36.7]} 25. Qf2 {[%clk
0:02:32]} 25... Rc7 {[%clk 0:00:21.2]} 26. g3 {[%clk 0:02:20.7]} 26... b5 {[%clk
0:00:21]} 27. Kg2 {[%clk 0:02:18.4]} 27... b4 {[%clk 0:00:22.1]} 28. Kh3 {[%clk
0:02:19.2]} 28... a4 {[%clk 0:00:22.5]} 29. Nh2 {[%clk 0:02:10.3]} 29... a3
{[%clk 0:00:19.6]} 30. bxa3 {[%clk 0:02:09.7]} 30... bxa3 {[%clk 0:00:21.5]} 31.
g4 {[%clk 0:02:10.9]} 31... Nh4 {[%clk 0:00:22.4]} 32. Rb1 {[%clk 0:01:57.5]}
32... Qc8 {[%clk 0:00:22.3]} 33. Qd2 {[%clk 0:01:56.5]} 33... Rc3 {[%clk
0:00:20.6]} 34. Kg3 {[%clk 0:01:47.3]} 34... Bf8 {[%clk 0:00:20.7]} 35. Nf1
{[%clk 0:01:46.3]} 35... Be7 {[%clk 0:00:20.7]} 36. Ba6 {[%clk 0:01:40.5]} 36...
Qc6 {[%clk 0:00:18.2]} 37. Bd3 {[%clk 0:01:20.6]} 37... f6 {[%clk 0:00:18.6]}
38. Rb8+ {[%clk 0:01:17.1]} 38... Kg7 {[%clk 0:00:19.2]} 39. exf6+ {[%clk
0:01:10.8]} 39... Bxf6 {[%clk 0:00:21]} 40. Kf2 {[%clk 0:00:54.8]} 40... Qc7
{[%clk 0:00:21.6]} 41. Rb7 {[%clk 0:00:55.6]} 41... Qxb7 {[%clk 0:00:20.9]} 42.
Qxc3 {[%clk 0:00:57.2]} 42... Qb8 {[%clk 0:00:11.9]} 43. Qxa3 {[%clk 0:00:55.4]}
43... e5 {[%clk 0:00:11.8]} 44. Qb3 {[%clk 0:00:55.5]} 44... exd4 {[%clk
0:00:11.5]} 45. Qxb8 {[%clk 0:00:55.7]} 45... dxe3+ {[%clk 0:00:10.2]} 46. Nxe3
{[%clk 0:00:56.2]} 1-0

[Event "*** MasterClass Titled Tuesday Blitz"]
[Site "Chess.com"]
[Date "2017.11.07"]
[Round "4"]
[White "Margency"]
[Black "nubair1198"]
[Result "0-1"]
[WhiteElo "2516"]
[BlackElo "2543"]
[TimeControl "180+2"]
[EndTime "15:01:35 PST"]
[Termination "nubair1198 won by resignation"]

1. e4 {[%clk 0:03:01.9]} 1... c6 {[%clk 0:03:01.4]} 2. d4 {[%clk 0:03:02.7]}
2... d5 {[%clk 0:03:02.9]} 3. exd5 {[%clk 0:03:03.8]} 3... cxd5 {[%clk
0:03:04.1]} 4. c4 {[%clk 0:03:05.7]} 4... Nf6 {[%clk 0:03:05.1]} 5. Nc3 {[%clk
0:03:07.4]} 5... Nc6 {[%clk 0:03:06.6]} 6. Bg5 {[%clk 0:03:07.5]} 6... e6 {[%clk
0:03:06.8]} 7. Nf3 {[%clk 0:03:08.1]} 7... Be7 {[%clk 0:03:08]} 8. Bd3 {[%clk
0:03:07]} 8... dxc4 {[%clk 0:03:07.7]} 9. Bxc4 {[%clk 0:03:08.9]} 9... O-O
{[%clk 0:03:09]} 10. O-O {[%clk 0:03:10.2]} 10... b6 {[%clk 0:03:10.5]} 11. a3
{[%clk 0:03:10.1]} 11... Bb7 {[%clk 0:03:11.8]} 12. Qd3 {[%clk 0:03:10.9]} 12...
Rc8 {[%clk 0:03:12.9]} 13. Rad1 {[%clk 0:03:10.5]} 13... Qd6 {[%clk 0:02:55.6]}
14. Ba2 {[%clk 0:03:03]} 14... Rfd8 {[%clk 0:02:53.7]} 15. Bb1 {[%clk
0:02:56.1]} 15... g6 {[%clk 0:02:54.4]} 16. Ba2 {[%clk 0:02:56.1]} 16... Nh5
{[%clk 0:02:06.4]} 17. d5 {[%clk 0:02:41]} 17... Bxg5 {[%clk 0:01:59.2]} 18.
Nxg5 {[%clk 0:02:39.6]} 18... Ne5 {[%clk 0:02:00.2]} 19. Qe3 {[%clk 0:02:27.4]}
19... Ng4 {[%clk 0:01:53.7]} 20. Qh3 {[%clk 0:02:27.9]} 20... Qf4 {[%clk
0:01:55]} 21. dxe6 {[%clk 0:02:20.3]} 21... Qxg5 {[%clk 0:01:53.5]} 22. exf7+
{[%clk 0:02:17.9]} 22... Kg7 {[%clk 0:01:50.1]} 23. Ne2 {[%clk 0:01:56.9]} 23...
Rxd1 {[%clk 0:01:34.9]} 24. Rxd1 {[%clk 0:01:57]} 24... Ne5 {[%clk 0:01:35.9]}
25. Ng3 {[%clk 0:01:16.2]} 25... Nf4 {[%clk 0:01:31.1]} 26. f8=Q+ {[%clk
0:00:59]} 26... Rxf8 {[%clk 0:01:31.2]} 27. Rd7+ {[%clk 0:00:59.7]} 27... Nf7
{[%clk 0:01:02.9]} 28. Nh5+ {[%clk 0:00:41.2]} 28... gxh5 {[%clk 0:00:46]} 29.
Qc3+ {[%clk 0:00:41.7]} 29... Kh6 {[%clk 0:00:46.8]} 30. Kf1 {[%clk 0:00:19.2]}
30... Qxg2+ {[%clk 0:00:37.8]} 31. Ke1 {[%clk 0:00:20.1]} 31... Re8+ {[%clk
0:00:38.2]} 32. Kd1 {[%clk 0:00:21.1]} 32... Qf1+ {[%clk 0:00:37.8]} 33. Kc2
{[%clk 0:00:22.2]} 33... Qxf2+ {[%clk 0:00:31.1]} 34. Kb3 {[%clk 0:00:20.9]}
34... Bd5+ {[%clk 0:00:32.4]} 35. Ka4 {[%clk 0:00:20.1]} 35... Re4+ {[%clk
0:00:30.7]} 36. b4 {[%clk 0:00:19.4]} 36... Qxa2 {[%clk 0:00:28.7]} 37. Qf6+
{[%clk 0:00:05.4]} 37... Ng6 {[%clk 0:00:29.9]} 38. h4 {[%clk 0:00:05.9]} 38...
Qb3+ {[%clk 0:00:27.3]} 39. Kb5 {[%clk 0:00:07]} 39... Qc4+ {[%clk 0:00:28.3]}
40. Ka4 {[%clk 0:00:08.3]} 40... Bc6+ {[%clk 0:00:29.4]} 41. Qxc6 {[%clk
0:00:07.6]} 41... Qxc6+ {[%clk 0:00:30.9]} 42. Kb3 {[%clk 0:00:09.5]} 42... Qxd7
{[%clk 0:00:31.6]} 0-1

[Event "*** MasterClass Titled Tuesday Blitz"]
[Site "Chess.com"]
[Date "2017.11.07"]
[Round "4"]
[White "Msb2"]
[Black "Taron_Shagbazyan"]
[Result "1-0"]
[WhiteElo "2644"]
[BlackElo "2558"]
[TimeControl "180+2"]
[EndTime "15:01:37 PST"]
[Termination "Msb2 won by resignation"]

1. d4 {[%clk 0:03:01.9]} 1... d5 {[%clk 0:02:52.4]} 2. c4 {[%clk 0:03:02.2]}
2... c6 {[%clk 0:02:53.4]} 3. Nf3 {[%clk 0:03:02.8]} 3... Nf6 {[%clk 0:02:49.2]}
4. e3 {[%clk 0:03:03.4]} 4... e6 {[%clk 0:02:47.5]} 5. Bd3 {[%clk 0:03:03.7]}
5... Bd6 {[%clk 0:02:48.1]} 6. Nc3 {[%clk 0:02:59.9]} 6... O-O {[%clk
0:02:47.4]} 7. O-O {[%clk 0:02:55.6]} 7... Nbd7 {[%clk 0:02:48]} 8. e4 {[%clk
0:02:56.6]} 8... dxc4 {[%clk 0:02:43.8]} 9. Bxc4 {[%clk 0:02:57.6]} 9... e5
{[%clk 0:02:44.9]} 10. Bg5 {[%clk 0:02:57.9]} 10... h6 {[%clk 0:02:41.7]} 11.
Bh4 {[%clk 0:02:58.3]} 11... Qc7 {[%clk 0:02:41.3]} 12. Rc1 {[%clk 0:02:44.1]}
12... exd4 {[%clk 0:02:42.2]} 13. Qxd4 {[%clk 0:02:20.8]} 13... Bc5 {[%clk
0:02:21.6]} 14. Qd2 {[%clk 0:01:59.9]} 14... Re8 {[%clk 0:02:10.6]} 15. Bb3
{[%clk 0:01:38.1]} 15... Qa5 {[%clk 0:01:58.6]} 16. e5 {[%clk 0:01:24.5]} 16...
Nh7 {[%clk 0:01:45.2]} 17. Qf4 {[%clk 0:01:14.7]} 17... Rf8 {[%clk 0:01:43.9]}
18. Ne4 {[%clk 0:01:06.9]} 18... Kh8 {[%clk 0:01:25.8]} 19. Rcd1 {[%clk
0:00:46.8]} 19... Nb6 {[%clk 0:01:21.8]} 20. Nd6 {[%clk 0:00:43.3]} 20... Bxd6
{[%clk 0:01:22.8]} 21. Rxd6 {[%clk 0:00:45.2]} 21... Be6 {[%clk 0:01:01.2]} 22.
Bxe6 {[%clk 0:00:42.2]} 22... fxe6 {[%clk 0:01:01.6]} 23. Qg4 {[%clk 0:00:43.8]}
23... Qxa2 {[%clk 0:01:00.4]} 24. Rxe6 {[%clk 0:00:43.2]} 24... Nd5 {[%clk
0:00:57.6]} 25. Rg6 {[%clk 0:00:42.5]} 25... Rg8 {[%clk 0:00:52.4]} 26. e6
{[%clk 0:00:41.3]} 26... Ndf6 {[%clk 0:00:42.4]} 27. Bxf6 {[%clk 0:00:30.7]}
27... Nxf6 {[%clk 0:00:39.1]} 28. Rxf6 {[%clk 0:00:30.3]} 28... gxf6 {[%clk
0:00:39.4]} 29. Qf4 {[%clk 0:00:31.6]} 29... Rg7 {[%clk 0:00:28.7]} 30. Qxh6+
{[%clk 0:00:31.5]} 30... Kg8 {[%clk 0:00:30.2]} 31. Qxf6 {[%clk 0:00:32.5]}
31... Re8 {[%clk 0:00:31.1]} 32. Ng5 {[%clk 0:00:30.2]} 32... Qd5 {[%clk
0:00:29.5]} 33. h4 {[%clk 0:00:30.1]} 33... Rxg5 {[%clk 0:00:29.7]} 34. Qxg5+
{[%clk 0:00:28.8]} 34... Qxg5 {[%clk 0:00:30.2]} 35. hxg5 {[%clk 0:00:30.7]}
35... Rxe6 {[%clk 0:00:31.7]} 36. f4 {[%clk 0:00:32.6]} 36... a5 {[%clk
0:00:29.6]} 37. f5 {[%clk 0:00:33]} 37... Re5 {[%clk 0:00:30.3]} 38. Rf4 {[%clk
0:00:31.1]} 38... a4 {[%clk 0:00:28.6]} 39. g4 {[%clk 0:00:29.8]} 39... b5
{[%clk 0:00:25.1]} 40. Rd4 {[%clk 0:00:30.5]} 40... c5 {[%clk 0:00:20.9]} 41.
Rd8+ {[%clk 0:00:31.5]} 41... Kf7 {[%clk 0:00:22.2]} 42. Rd7+ {[%clk 0:00:32.5]}
42... Ke8 {[%clk 0:00:23.2]} 43. Rb7 {[%clk 0:00:31.9]} 43... b4 {[%clk
0:00:24.1]} 44. Kf2 {[%clk 0:00:32.4]} 44... Re4 {[%clk 0:00:19.9]} 45. Kf3
{[%clk 0:00:33.4]} 45... Rd4 {[%clk 0:00:19.3]} 46. g6 {[%clk 0:00:34.4]} 1-0